[Event "Titled Tuesday Blitz June 20 Early 2023"]
[White "Brueckner, Thomas"]
[Black "Vyatkin, Dmitry"]
[WhiteFideId "4600452"]
[BlackFideId "4171900"]
[WhiteElo "2319"]
[BlackElo "2279"]
[Result "0-1"]
[Round "7"]
[TimeControl "180+2"]
[Date "2023.06.20"]
[WhiteClock "0:00:00"]
[BlackClock "0:00:02"]
[Board "136"]

1. d4 {[%clk 0:03:00]}  Nf6 {[%clk 0:02:59]} 2. c4 {[%clk 0:03:00]}  g6 {[%clk 0:02:59]} 3. Nc3 {[%clk 0:03:00]}  Bg7 {[%clk 0:02:59]} 4. e4 {[%clk 0:03:00]}  d6 {[%clk 0:02:59]} 5. Be2 {[%clk 0:03:00]}  O-O {[%clk 0:02:57]} 6. Nf3 {[%clk 0:03:01]}  e5 {[%clk 0:02:56]} 7. O-O {[%clk 0:02:59]}  Nc6 {[%clk 0:02:56]} 8. d5 {[%clk 0:03:00]}  Ne7 {[%clk 0:02:56]} 9. b4 {[%clk 0:03:00]}  Nd7 {[%clk 0:02:51]} 10. c5 {[%clk 0:02:59]}  f5 {[%clk 0:02:12]} 11. Ng5 {[%clk 0:02:58]}  Nf6 {[%clk 0:02:10]} 12. Bc4 {[%clk 0:02:38]}  Kh8 {[%clk 0:02:06]} 13. a4 {[%clk 0:02:34]}  a5 {[%clk 0:01:51]} 14. bxa5 {[%clk 0:02:24]}  h6 {[%clk 0:01:36]} 15. Ne6 {[%clk 0:02:22]}  Bxe6 {[%clk 0:01:35]} 16. dxe6 {[%clk 0:02:22]}  fxe4 {[%clk 0:01:35]} 17. cxd6 {[%clk 0:02:15]}  cxd6 {[%clk 0:01:34]} 18. Ba3 {[%clk 0:02:11]}  Rc8 {[%clk 0:01:20]} 19. Qxd6 {[%clk 0:00:57]}  Rxc4 {[%clk 0:01:07]} 20. Qxe7 {[%clk 0:00:54]}  Rxc3 {[%clk 0:01:05]} 21. Qxb7 {[%clk 0:00:48]}  Re8 {[%clk 0:00:57]} 22. a6 {[%clk 0:00:42]}  Qc8 {[%clk 0:00:53]} 23. Qf7 {[%clk 0:00:40]}  Qxe6 {[%clk 0:00:47]} 24. Qxg6 {[%clk 0:00:39]}  Qxa6 {[%clk 0:00:47]} 25. Bb2 {[%clk 0:00:38]}  Rc2 {[%clk 0:00:43]} 26. Bc1 {[%clk 0:00:34]}  Rxc1 {[%clk 0:00:16]} 27. Rfxc1 {[%clk 0:00:29]}  Qe6 {[%clk 0:00:10]} 28. a5 {[%clk 0:00:28]}  Ra8 {[%clk 0:00:10]} 29. Qg3 {[%clk 0:00:21]}  Nd5 {[%clk 0:00:09]} 30. Qb3 {[%clk 0:00:21]}  e3 {[%clk 0:00:05]} 31. fxe3 {[%clk 0:00:19]}  e4 {[%clk 0:00:05]} 32. Rab1 {[%clk 0:00:10]}  Qe5 {[%clk 0:00:04]} 33. Qb5 {[%clk 0:00:07]}  Nxe3 {[%clk 0:00:03]} 34. Qxe5 {[%clk 0:00:06]}  Bxe5 {[%clk 0:00:03]} 35. Rb5 {[%clk 0:00:05]}  Bd4 {[%clk 0:00:03]} 36. Kh1 {[%clk 0:00:05]}  Ng4 {[%clk 0:00:02]} 37. h3 {[%clk 0:00:04]}  Nf2+ {[%clk 0:00:02]} 38. Kh2 {[%clk 0:00:05]}  e3 {[%clk 0:00:03]} 39. Re1 {[%clk 0:00:05]}  Kg7 {[%clk 0:00:02]} 40. Kg3 {[%clk 0:00:05]}  Kf6 {[%clk 0:00:02]} 41. Kf3 {[%clk 0:00:05]}  Ke6 {[%clk 0:00:02]} 42. Rxe3+ {[%clk 0:00:05]}  Bxe3 {[%clk 0:00:02]} 43. Kxe3 {[%clk 0:00:05]}  Nh1 {[%clk 0:00:02]} 44. Rh5 {[%clk 0:00:05]}  Ng3 {[%clk 0:00:01]} 45. Rxh6+ {[%clk 0:00:05]}  Ke5 {[%clk 0:00:02]} 46. a6 {[%clk 0:00:05]}  Rb8 {[%clk 0:00:02]} 47. Kf3 {[%clk 0:00:05]}  Rb3+ {[%clk 0:00:02]} 48. Kf2 {[%clk 0:00:04]}  Ne4+ {[%clk 0:00:02]} 49. Ke2 {[%clk 0:00:03]}  Ra3 {[%clk 0:00:02]} 50. Rb6 {[%clk 0:00:00]}  Kf4 {[%clk 0:00:02]} 0-1


[Site "https://www.chess.com"]

[Event "Titled Tuesday Blitz June 20 Early 2023"]
[White "SicilianPanzer"]
[Black "LangesNasenhaar"]
[WhiteElo "2236"]
[BlackElo "2458"]
[Result "0-1"]
[Round "7"]
[TimeControl "180+2"]
[Date "2023.06.20"]
[WhiteClock "0:00:00"]
[BlackClock "0:00:14"]
[Board "139"]

1. e4 {[%clk 0:03:00]}  d6 {[%clk 0:03:00]} 2. d4 {[%clk 0:02:59]}  Nf6 {[%clk 0:03:00]} 3. Nc3 {[%clk 0:03:00]}  e5 {[%clk 0:03:01]} 4. Nf3 {[%clk 0:02:56]}  Nbd7 {[%clk 0:03:00]} 5. Bc4 {[%clk 0:02:54]}  Be7 {[%clk 0:03:01]} 6. h3 {[%clk 0:02:53]}  c6 {[%clk 0:03:01]} 7. a4 {[%clk 0:02:52]}  h6 {[%clk 0:03:01]} 8. O-O {[%clk 0:02:51]}  g5 {[%clk 0:03:01]} 9. Nh2 {[%clk 0:02:40]}  exd4 {[%clk 0:03:01]} 10. Qxd4 {[%clk 0:02:39]}  Ne5 {[%clk 0:03:02]} 11. f4 {[%clk 0:02:33]}  Nxc4 {[%clk 0:02:43]} 12. Qxc4 {[%clk 0:02:32]}  Be6 {[%clk 0:02:39]} 13. Qe2 {[%clk 0:02:23]}  gxf4 {[%clk 0:02:24]} 14. Bxf4 {[%clk 0:02:21]}  Qb6+ {[%clk 0:02:24]} 15. Be3 {[%clk 0:02:13]}  Qb4 {[%clk 0:01:52]} 16. Rfd1 {[%clk 0:01:45]}  Rg8 {[%clk 0:01:49]} 17. Kh1 {[%clk 0:01:38]}  Nxe4 {[%clk 0:01:41]} 18. Nxe4 {[%clk 0:01:26]}  Qxe4 {[%clk 0:01:41]} 19. Rd4 {[%clk 0:01:23]}  Qg6 {[%clk 0:01:34]} 20. Bf4 {[%clk 0:01:06]}  d5 {[%clk 0:01:28]} 21. Re1 {[%clk 0:00:53]}  Bh4 {[%clk 0:01:09]} 22. Red1 {[%clk 0:00:35]}  Bf6 {[%clk 0:01:07]} 23. Rb4 {[%clk 0:00:23]}  b6 {[%clk 0:00:57]} 24. a5 {[%clk 0:00:20]}  b5 {[%clk 0:00:56]} 25. Nf3 {[%clk 0:00:18]}  Kf8 {[%clk 0:00:39]} 26. Qd2 {[%clk 0:00:09]}  Kg7 {[%clk 0:00:35]} 27. Ne5 {[%clk 0:00:09]}  Qh5 {[%clk 0:00:17]} 28. Re1 {[%clk 0:00:08]}  Kh7 {[%clk 0:00:16]} 29. Nxc6 {[%clk 0:00:05]}  Bxh3 {[%clk 0:00:15]} 30. gxh3 {[%clk 0:00:00]}  Qxh3+ {[%clk 0:00:14]} 0-1


[Site "https://www.chess.com"]

[Event "Titled Tuesday Blitz June 20 Early 2023"]
[White "Titichoca Daza, Daniel"]
[Black "Tsukerman, Julia"]
[WhiteFideId "3309550"]
[BlackFideId "2621649"]
[WhiteElo "2101"]
[BlackElo "1667"]
[Result "1-0"]
[Round "7"]
[TimeControl "180+2"]
[Date "2023.06.20"]
[WhiteClock "0:01:10"]
[BlackClock "0:00:00"]
[Board "141"]

1. d4 {[%clk 0:02:58]}  d5 {[%clk 0:02:59]} 2. Nf3 {[%clk 0:02:59]}  Nf6 {[%clk 0:02:59]} 3. c4 {[%clk 0:03:00]}  e6 {[%clk 0:02:59]} 4. e3 {[%clk 0:02:58]}  Be7 {[%clk 0:02:58]} 5. Nbd2 {[%clk 0:02:59]}  O-O {[%clk 0:02:58]} 6. Qc2 {[%clk 0:02:59]}  b6 {[%clk 0:02:56]} 7. e4 {[%clk 0:03:00]}  dxe4 {[%clk 0:02:52]} 8. Nxe4 {[%clk 0:02:59]}  Bb7 {[%clk 0:02:52]} 9. Bd3 {[%clk 0:03:00]}  Nbd7 {[%clk 0:02:46]} 10. O-O {[%clk 0:02:59]}  Nxe4 {[%clk 0:02:33]} 11. Bxe4 {[%clk 0:02:57]}  Bxe4 {[%clk 0:02:33]} 12. Qxe4 {[%clk 0:02:58]}  Nf6 {[%clk 0:02:33]} 13. Qh4 {[%clk 0:02:53]}  c5 {[%clk 0:02:14]} 14. dxc5 {[%clk 0:02:48]}  Bxc5 {[%clk 0:02:11]} 15. Bg5 {[%clk 0:02:47]}  Be7 {[%clk 0:02:10]} 16. Rfd1 {[%clk 0:02:46]}  Qc7 {[%clk 0:02:07]} 17. Re1 {[%clk 0:02:40]}  Rac8 {[%clk 0:01:59]} 18. b3 {[%clk 0:02:39]}  Rcd8 {[%clk 0:01:51]} 19. Ne5 {[%clk 0:02:38]}  Qc5 {[%clk 0:01:30]} 20. Ng4 {[%clk 0:02:30]}  Qf5 {[%clk 0:01:10]} 21. Bxf6 {[%clk 0:02:29]}  Bxf6 {[%clk 0:01:05]} 22. Qxf6 {[%clk 0:02:27]}  Qxf6 {[%clk 0:00:51]} 23. Nxf6+ {[%clk 0:02:26]}  gxf6 {[%clk 0:00:51]} 24. Rad1 {[%clk 0:02:26]}  Kg7 {[%clk 0:00:44]} 25. f4 {[%clk 0:02:19]}  Kg6 {[%clk 0:00:43]} 26. Kf2 {[%clk 0:02:19]}  Kf5 {[%clk 0:00:40]} 27. Kf3 {[%clk 0:02:20]}  h5 {[%clk 0:00:33]} 28. g3 {[%clk 0:02:20]}  e5 {[%clk 0:00:29]} 29. a3 {[%clk 0:01:46]}  Ke6 {[%clk 0:00:20]} 30. h3 {[%clk 0:01:40]}  Rg8 {[%clk 0:00:19]} 31. g4 {[%clk 0:01:39]}  hxg4+ {[%clk 0:00:19]} 32. hxg4 {[%clk 0:01:40]}  Rd6 {[%clk 0:00:14]} 33. f5+ {[%clk 0:01:33]}  Ke7 {[%clk 0:00:14]} 34. Rxd6 {[%clk 0:01:33]}  Kxd6 {[%clk 0:00:15]} 35. Rd1+ {[%clk 0:01:34]}  Ke7 {[%clk 0:00:15]} 36. a4 {[%clk 0:01:31]}  Rh8 {[%clk 0:00:15]} 37. Kg3 {[%clk 0:01:28]}  Rc8 {[%clk 0:00:13]} 38. Rd5 {[%clk 0:01:27]}  Rc7 {[%clk 0:00:10]} 39. a5 {[%clk 0:01:26]}  bxa5 {[%clk 0:00:10]} 40. Rxa5 {[%clk 0:01:26]}  Rb7 {[%clk 0:00:10]} 41. Kh4 {[%clk 0:01:21]}  Kd6 {[%clk 0:00:07]} 42. Ra6+ {[%clk 0:01:14]}  Ke7 {[%clk 0:00:04]} 43. g5 {[%clk 0:01:12]}  Rb6 {[%clk 0:00:02]} 44. Rxa7+ {[%clk 0:01:10]}  Kf8 {[%clk 0:00:00]} 45. g6 {[%clk 0:01:10]} 1-0


[Site "https://www.chess.com"]

[Event "Titled Tuesday Blitz June 20 Early 2023"]
[White "Cardozo Munar, Carlos Eduardo"]
[Black "Demin, Vladimir"]
[WhiteFideId "4409477"]
[BlackFideId "4167457"]
[WhiteElo "2067"]
[BlackElo "2540"]
[Result "0-1"]
[Round "7"]
[TimeControl "180+2"]
[Date "2023.06.20"]
[WhiteClock "0:01:30"]
[BlackClock "0:01:32"]
[Board "144"]

1. d4 {[%clk 0:02:31]}  Nf6 {[%clk 0:02:53]} 2. Bg5 {[%clk 0:02:30]}  d5 {[%clk 0:02:53]} 3. Nd2 {[%clk 0:02:30]}  c5 {[%clk 0:02:52]} 4. e3 {[%clk 0:02:30]}  Nc6 {[%clk 0:02:52]} 5. c3 {[%clk 0:02:30]}  e5 {[%clk 0:02:51]} 6. dxe5 {[%clk 0:02:28]}  Nxe5 {[%clk 0:02:52]} 7. Ngf3 {[%clk 0:02:28]}  Ng6 {[%clk 0:02:49]} 8. Bb5+ {[%clk 0:02:28]}  Bd7 {[%clk 0:02:48]} 9. Qa4 {[%clk 0:02:28]}  Be7 {[%clk 0:02:45]} 10. Bxf6 {[%clk 0:02:24]}  Bxf6 {[%clk 0:02:45]} 11. Bxd7+ {[%clk 0:02:24]}  Qxd7 {[%clk 0:02:46]} 12. Qxd7+ {[%clk 0:02:24]}  Kxd7 {[%clk 0:02:47]} 13. O-O-O {[%clk 0:02:24]}  Kc6 {[%clk 0:02:45]} 14. e4 {[%clk 0:02:22]}  Rad8 {[%clk 0:02:38]} 15. exd5+ {[%clk 0:02:22]}  Rxd5 {[%clk 0:02:39]} 16. Ne4 {[%clk 0:02:23]}  Rhd8 {[%clk 0:02:33]} 17. Rxd5 {[%clk 0:02:22]}  Rxd5 {[%clk 0:02:33]} 18. Nxf6 {[%clk 0:02:22]}  gxf6 {[%clk 0:02:33]} 19. Rd1 {[%clk 0:02:23]}  Nf4 {[%clk 0:02:32]} 20. Rxd5 {[%clk 0:02:22]}  Kxd5 {[%clk 0:02:32]} 21. Ne1 {[%clk 0:02:19]}  c4 {[%clk 0:02:29]} 22. Kd2 {[%clk 0:02:19]}  a5 {[%clk 0:02:26]} 23. g3 {[%clk 0:02:19]}  Nh3 {[%clk 0:02:15]} 24. Ke3 {[%clk 0:02:18]}  Ng5 {[%clk 0:02:12]} 25. Nc2 {[%clk 0:02:12]}  Ne6 {[%clk 0:02:11]} 26. h4 {[%clk 0:02:08]}  b5 {[%clk 0:02:05]} 27. b3 {[%clk 0:02:03]}  cxb3 {[%clk 0:02:04]} 28. axb3 {[%clk 0:02:03]}  f5 {[%clk 0:01:54]} 29. Kd3 {[%clk 0:02:03]}  Nc5+ {[%clk 0:01:54]} 30. Ke3 {[%clk 0:01:59]}  Nxb3 {[%clk 0:01:54]} 31. Kf4 {[%clk 0:01:57]}  Ke6 {[%clk 0:01:53]} 32. Ke3 {[%clk 0:01:47]}  Ke5 {[%clk 0:01:45]} 33. Na3 {[%clk 0:01:47]}  b4 {[%clk 0:01:40]} 34. Nc4+ {[%clk 0:01:47]}  Kd5 {[%clk 0:01:38]} 35. Nb6+ {[%clk 0:01:45]}  Kc5 {[%clk 0:01:33]} 36. Na4+ {[%clk 0:01:45]}  Kb5 {[%clk 0:01:33]} 37. Nb2 {[%clk 0:01:41]}  bxc3 {[%clk 0:01:32]} 38. Nd3 {[%clk 0:01:30]}  c2 {[%clk 0:01:32]} 0-1


[Site "https://www.chess.com"]

[Event "Titled Tuesday Blitz June 20 Early 2023"]
[White "Jiganchine, Roman"]
[Black "a-z30"]
[WhiteFideId "2603667"]
[WhiteElo "2317"]
[BlackElo "2491"]
[Result "1-0"]
[Round "7"]
[TimeControl "180+2"]
[Date "2023.06.20"]
[WhiteClock "0:00:03"]
[BlackClock "0:00:00"]
[Board "146"]

1. e4 {[%clk 0:03:00]}  e6 {[%clk 0:03:00]} 2. d4 {[%clk 0:02:59]}  c5 {[%clk 0:03:00]} 3. c3 {[%clk 0:02:45]}  Nf6 {[%clk 0:02:57]} 4. Bd3 {[%clk 0:02:44]}  Nc6 {[%clk 0:02:51]} 5. Nf3 {[%clk 0:02:44]}  d5 {[%clk 0:02:35]} 6. Nbd2 {[%clk 0:02:43]}  cxd4 {[%clk 0:02:30]} 7. cxd4 {[%clk 0:02:39]}  dxe4 {[%clk 0:02:30]} 8. Nxe4 {[%clk 0:02:39]}  Nxe4 {[%clk 0:02:27]} 9. Bxe4 {[%clk 0:02:39]}  Bb4+ {[%clk 0:02:28]} 10. Bd2 {[%clk 0:02:38]}  Bxd2+ {[%clk 0:02:28]} 11. Qxd2 {[%clk 0:02:39]}  O-O {[%clk 0:02:21]} 12. O-O {[%clk 0:02:38]}  Qf6 {[%clk 0:02:20]} 13. Bxc6 {[%clk 0:02:31]}  bxc6 {[%clk 0:02:20]} 14. Rac1 {[%clk 0:02:31]}  Ba6 {[%clk 0:02:17]} 15. Rfe1 {[%clk 0:02:30]}  Rfc8 {[%clk 0:02:08]} 16. Rc5 {[%clk 0:02:27]}  Rab8 {[%clk 0:02:08]} 17. b3 {[%clk 0:02:22]}  Rd8 {[%clk 0:01:50]} 18. h3 {[%clk 0:02:19]}  Rd6 {[%clk 0:01:48]} 19. Qe3 {[%clk 0:02:16]}  Rbd8 {[%clk 0:01:44]} 20. Rec1 {[%clk 0:02:15]}  Bb7 {[%clk 0:01:38]} 21. Qe5 {[%clk 0:02:00]}  Qxe5 {[%clk 0:01:06]} 22. dxe5 {[%clk 0:01:58]}  Rd5 {[%clk 0:01:01]} 23. g4 {[%clk 0:01:43]}  h6 {[%clk 0:00:59]} 24. Kh2 {[%clk 0:01:42]}  g5 {[%clk 0:00:59]} 25. Kg3 {[%clk 0:01:41]}  Kg7 {[%clk 0:00:58]} 26. h4 {[%clk 0:01:34]}  Kg6 {[%clk 0:00:57]} 27. h5+ {[%clk 0:01:30]}  Kg7 {[%clk 0:00:57]} 28. Nh2 {[%clk 0:01:21]}  Rd3+ {[%clk 0:00:52]} 29. Kg2 {[%clk 0:01:16]}  R8d5 {[%clk 0:00:52]} 30. Nf1 {[%clk 0:01:11]}  R5d4 {[%clk 0:00:39]} 31. Ne3 {[%clk 0:01:06]}  Rf4 {[%clk 0:00:19]} 32. R1c3 {[%clk 0:00:57]}  Rd2 {[%clk 0:00:19]} 33. Rc2 {[%clk 0:00:49]}  Rfxf2+ {[%clk 0:00:18]} 34. Kg3 {[%clk 0:00:47]}  Rfe2 {[%clk 0:00:15]} 35. Rxd2 {[%clk 0:00:46]}  Rxd2 {[%clk 0:00:16]} 36. Nc4 {[%clk 0:00:33]}  Rxa2 {[%clk 0:00:11]} 37. Nd6 {[%clk 0:00:33]}  Ba6 {[%clk 0:00:11]} 38. Rxc6 {[%clk 0:00:30]}  Ra3 {[%clk 0:00:09]} 39. Rc7 {[%clk 0:00:25]}  Rxb3+ {[%clk 0:00:09]} 40. Kg2 {[%clk 0:00:26]}  Be2 {[%clk 0:00:08]} 41. Rxf7+ {[%clk 0:00:24]}  Kg8 {[%clk 0:00:08]} 42. Rf6 {[%clk 0:00:21]}  Bxg4 {[%clk 0:00:08]} 43. Rxh6 {[%clk 0:00:20]}  a5 {[%clk 0:00:08]} 44. Rg6+ {[%clk 0:00:20]}  Kf8 {[%clk 0:00:06]} 45. Rxg5 {[%clk 0:00:20]}  Be2 {[%clk 0:00:05]} 46. h6 {[%clk 0:00:20]}  Bd3 {[%clk 0:00:05]} 47. Rg7 {[%clk 0:00:16]}  a4 {[%clk 0:00:05]} 48. Ra7 {[%clk 0:00:16]}  a3 {[%clk 0:00:05]} 49. Kg3 {[%clk 0:00:11]}  a2 {[%clk 0:00:04]} 50. Kf4 {[%clk 0:00:09]}  Rb4+ {[%clk 0:00:02]} 51. Kg5 {[%clk 0:00:09]}  Bb1 {[%clk 0:00:03]} 52. Kf6 {[%clk 0:00:05]}  Rf4+ {[%clk 0:00:02]} 53. Kxe6 {[%clk 0:00:05]}  Rf1 {[%clk 0:00:00]} 54. h7 {[%clk 0:00:03]} 1-0


[Site "https://www.chess.com"]

[Event "Titled Tuesday Blitz June 20 Early 2023"]
[White "Morgunov, Anatoly"]
[Black "Vifleemskaia, Svetlana"]
[WhiteFideId "4145909"]
[BlackFideId "4129490"]
[WhiteElo "2237"]
[BlackElo "1930"]
[Result "1-0"]
[Round "7"]
[TimeControl "180+2"]
[Date "2023.06.20"]
[WhiteClock "0:01:30"]
[BlackClock "0:00:00"]
[Board "147"]

1. d4 {[%clk 0:03:00]}  Nf6 {[%clk 0:02:58]} 2. c4 {[%clk 0:03:00]}  e6 {[%clk 0:02:58]} 3. g3 {[%clk 0:03:00]}  Bb4+ {[%clk 0:02:58]} 4. Bd2 {[%clk 0:03:00]}  Qe7 {[%clk 0:02:58]} 5. Nc3 {[%clk 0:03:00]}  O-O {[%clk 0:02:58]} 6. Bg2 {[%clk 0:03:00]}  Nc6 {[%clk 0:02:58]} 7. Nf3 {[%clk 0:03:00]}  Bxc3 {[%clk 0:02:58]} 8. Bxc3 {[%clk 0:03:00]}  Ne4 {[%clk 0:02:58]} 9. Rc1 {[%clk 0:03:01]}  d6 {[%clk 0:02:58]} 10. d5 {[%clk 0:02:58]}  Nxc3 {[%clk 0:02:56]} 11. Rxc3 {[%clk 0:02:57]}  Ne5 {[%clk 0:02:55]} 12. Nxe5 {[%clk 0:02:56]}  dxe5 {[%clk 0:02:56]} 13. O-O {[%clk 0:02:54]}  a5 {[%clk 0:02:38]} 14. Qc2 {[%clk 0:02:45]}  a4 {[%clk 0:02:33]} 15. Rd1 {[%clk 0:02:43]}  Ra5 {[%clk 0:02:27]} 16. Qe4 {[%clk 0:02:34]}  Qg5 {[%clk 0:01:36]} 17. h4 {[%clk 0:02:27]}  Qf5 {[%clk 0:01:34]} 18. Qe3 {[%clk 0:02:15]}  b6 {[%clk 0:01:29]} 19. Be4 {[%clk 0:02:14]}  Qf6 {[%clk 0:01:25]} 20. d6 {[%clk 0:02:07]}  Rc5 {[%clk 0:01:18]} 21. d7 {[%clk 0:02:02]}  Ba6 {[%clk 0:01:16]} 22. b3 {[%clk 0:01:55]}  Rd8 {[%clk 0:01:14]} 23. Qd3 {[%clk 0:01:41]}  g6 {[%clk 0:01:11]} 24. b4 {[%clk 0:01:39]}  Rxc4 {[%clk 0:00:17]} 25. Rxc4 {[%clk 0:01:39]}  c5 {[%clk 0:00:12]} 26. bxc5 {[%clk 0:01:34]}  bxc5 {[%clk 0:00:11]} 27. Qc3 {[%clk 0:01:32]}  Bxc4 {[%clk 0:00:10]} 28. Qxc4 {[%clk 0:01:33]}  Qe7 {[%clk 0:00:10]} 29. Qd3 {[%clk 0:01:31]}  f5 {[%clk 0:00:08]} 30. Bc6 {[%clk 0:01:31]}  e4 {[%clk 0:00:04]} 31. Qd6 {[%clk 0:01:31]}  Qxd6 {[%clk 0:00:02]} 32. Rxd6 {[%clk 0:01:32]}  a3 {[%clk 0:00:01]} 33. Rxe6 {[%clk 0:01:30]}  Kf7 {[%clk 0:00:00]} 34. Re8 {[%clk 0:01:30]} 1-0


[Site "https://www.chess.com"]

[Event "Titled Tuesday Blitz June 20 Early 2023"]
[White "Simonovic, Miroslav"]
[Black "Zheenbekov, Nurgazy"]
[WhiteFideId "919152"]
[BlackFideId "13800485"]
[WhiteElo "2075"]
[BlackElo "1975"]
[Result "0-1"]
[Round "7"]
[TimeControl "180+2"]
[Date "2023.06.20"]
[WhiteClock "0:00:00"]
[BlackClock "0:00:29"]
[Board "148"]

1. d4 {[%clk 0:03:00]}  Nf6 {[%clk 0:02:59]} 2. Bg5 {[%clk 0:03:01]}  c5 {[%clk 0:02:56]} 3. Bxf6 {[%clk 0:03:00]}  gxf6 {[%clk 0:02:56]} 4. d5 {[%clk 0:03:01]}  d6 {[%clk 0:02:55]} 5. Nd2 {[%clk 0:03:01]}  f5 {[%clk 0:02:54]} 6. e3 {[%clk 0:02:56]}  Bg7 {[%clk 0:02:54]} 7. c3 {[%clk 0:02:56]}  Nd7 {[%clk 0:02:54]} 8. a4 {[%clk 0:02:55]}  Nf6 {[%clk 0:02:53]} 9. Nc4 {[%clk 0:02:55]}  b6 {[%clk 0:02:51]} 10. Qd3 {[%clk 0:02:43]}  O-O {[%clk 0:02:41]} 11. Nf3 {[%clk 0:02:31]}  a6 {[%clk 0:02:40]} 12. Nh4 {[%clk 0:02:23]}  Bd7 {[%clk 0:02:29]} 13. Nxf5 {[%clk 0:02:19]}  Bxf5 {[%clk 0:02:29]} 14. Qxf5 {[%clk 0:02:20]}  b5 {[%clk 0:02:29]} 15. axb5 {[%clk 0:02:18]}  axb5 {[%clk 0:02:29]} 16. Na3 {[%clk 0:02:02]}  b4 {[%clk 0:02:27]} 17. Nc2 {[%clk 0:02:01]}  bxc3 {[%clk 0:02:26]} 18. bxc3 {[%clk 0:01:56]}  Rxa1+ {[%clk 0:02:26]} 19. Nxa1 {[%clk 0:01:57]}  Qa5 {[%clk 0:02:24]} 20. Nb3 {[%clk 0:01:36]}  Qxc3+ {[%clk 0:02:20]} 21. Nd2 {[%clk 0:01:36]}  Ra8 {[%clk 0:02:15]} 22. Qd3 {[%clk 0:01:22]}  Ra1+ {[%clk 0:02:11]} 23. Ke2 {[%clk 0:01:22]}  Qc1 {[%clk 0:02:03]} 24. Kf3 {[%clk 0:01:07]}  Qd1+ {[%clk 0:01:53]} 25. Qe2 {[%clk 0:00:52]}  Qa4 {[%clk 0:01:52]} 26. Qc4 {[%clk 0:00:31]}  Qd7 {[%clk 0:01:46]} 27. g3 {[%clk 0:00:24]}  Ra4 {[%clk 0:01:45]} 28. Qb5 {[%clk 0:00:17]}  Qg4+ {[%clk 0:01:44]} 29. Kg2 {[%clk 0:00:17]}  Nxd5 {[%clk 0:01:40]} 30. Be2 {[%clk 0:00:16]}  Qb4 {[%clk 0:01:26]} 31. Qe8+ {[%clk 0:00:16]}  Bf8 {[%clk 0:01:26]} 32. Bh5 {[%clk 0:00:16]}  Nf4+ {[%clk 0:00:58]} 33. exf4 {[%clk 0:00:15]}  Qb7+ {[%clk 0:00:57]} 34. Nf3 {[%clk 0:00:13]}  Qd5 {[%clk 0:00:57]} 35. Bg4 {[%clk 0:00:10]}  Ra3 {[%clk 0:00:55]} 36. Rb1 {[%clk 0:00:08]}  Ra8 {[%clk 0:00:47]} 37. Rb8 {[%clk 0:00:08]}  Rxb8 {[%clk 0:00:47]} 38. Qxb8 {[%clk 0:00:09]}  h5 {[%clk 0:00:47]} 39. Bh3 {[%clk 0:00:08]}  c4 {[%clk 0:00:47]} 40. Qc8 {[%clk 0:00:07]}  Qd3 {[%clk 0:00:40]} 41. Qc6 {[%clk 0:00:05]}  c3 {[%clk 0:00:39]} 42. Ng5 {[%clk 0:00:04]}  c2 {[%clk 0:00:33]} 43. Bf5 {[%clk 0:00:01]}  Qxf5 {[%clk 0:00:32]} 44. Qc3 {[%clk 0:00:00]}  Qd5+ {[%clk 0:00:29]} 0-1


[Site "https://www.chess.com"]

[Event "Titled Tuesday Blitz June 20 Early 2023"]
[White "Antonio, Jorge Carlos"]
[Black "Luna Javier, Edgar Froylan"]
[WhiteFideId "113190"]
[BlackFideId "5120101"]
[WhiteElo "2247"]
[BlackElo "2091"]
[Result "1-0"]
[Round "7"]
[TimeControl "180+2"]
[Date "2023.06.20"]
[WhiteClock "0:00:28"]
[BlackClock "0:00:00"]
[Board "150"]

1. d4 {[%clk 0:03:00]}  Nf6 {[%clk 0:02:59]} 2. Nf3 {[%clk 0:02:59]}  g6 {[%clk 0:02:59]} 3. c4 {[%clk 0:02:58]}  Bg7 {[%clk 0:02:59]} 4. Nc3 {[%clk 0:02:57]}  d5 {[%clk 0:02:59]} 5. Bg5 {[%clk 0:02:55]}  Ne4 {[%clk 0:02:58]} 6. Bf4 {[%clk 0:02:48]}  Nxc3 {[%clk 0:02:58]} 7. bxc3 {[%clk 0:02:47]}  dxc4 {[%clk 0:02:58]} 8. e3 {[%clk 0:02:43]}  b5 {[%clk 0:02:44]} 9. Qb1 {[%clk 0:02:37]}  c6 {[%clk 0:02:30]} 10. a4 {[%clk 0:02:34]}  a6 {[%clk 0:02:28]} 11. axb5 {[%clk 0:02:30]}  cxb5 {[%clk 0:02:29]} 12. Qe4 {[%clk 0:02:27]}  Ra7 {[%clk 0:01:54]} 13. Bxb8 {[%clk 0:02:25]}  Bb7 {[%clk 0:01:27]} 14. Qf4 {[%clk 0:02:15]}  Ra8 {[%clk 0:01:27]} 15. Bc7 {[%clk 0:02:10]}  Qd5 {[%clk 0:01:22]} 16. Ba5 {[%clk 0:02:06]}  O-O {[%clk 0:01:20]} 17. Be2 {[%clk 0:02:01]}  f6 {[%clk 0:01:14]} 18. e4 {[%clk 0:01:51]}  Qe6 {[%clk 0:01:02]} 19. d5 {[%clk 0:01:48]}  Qd7 {[%clk 0:01:00]} 20. O-O {[%clk 0:01:43]}  e5 {[%clk 0:00:58]} 21. Qe3 {[%clk 0:01:38]}  f5 {[%clk 0:00:54]} 22. Rfd1 {[%clk 0:01:19]}  Rae8 {[%clk 0:00:38]} 23. Ng5 {[%clk 0:01:14]}  Bh6 {[%clk 0:00:27]} 24. h4 {[%clk 0:01:07]}  f4 {[%clk 0:00:26]} 25. Qh3 {[%clk 0:00:58]}  Qxh3 {[%clk 0:00:11]} 26. Nxh3 {[%clk 0:00:54]}  Bc8 {[%clk 0:00:12]} 27. f3 {[%clk 0:00:51]}  Bxh3 {[%clk 0:00:07]} 28. gxh3 {[%clk 0:00:50]}  Rf6 {[%clk 0:00:07]} 29. Bb4 {[%clk 0:00:49]}  Bf8 {[%clk 0:00:06]} 30. Bxf8 {[%clk 0:00:48]}  Kxf8 {[%clk 0:00:07]} 31. Ra5 {[%clk 0:00:47]}  Rd6 {[%clk 0:00:07]} 32. Rda1 {[%clk 0:00:46]}  Ra8 {[%clk 0:00:07]} 33. h5 {[%clk 0:00:42]}  gxh5 {[%clk 0:00:06]} 34. h4 {[%clk 0:00:42]}  Ke7 {[%clk 0:00:06]} 35. Kf2 {[%clk 0:00:42]}  Rg6 {[%clk 0:00:04]} 36. Bf1 {[%clk 0:00:41]}  Kd7 {[%clk 0:00:03]} 37. Bh3+ {[%clk 0:00:40]}  Kc7 {[%clk 0:00:03]} 38. Bf5 {[%clk 0:00:40]}  Rf6 {[%clk 0:00:03]} 39. Bxh7 {[%clk 0:00:39]}  Kb6 {[%clk 0:00:02]} 40. Bf5 {[%clk 0:00:37]}  Rf7 {[%clk 0:00:02]} 41. d6 {[%clk 0:00:35]}  Rg7 {[%clk 0:00:01]} 42. d7 {[%clk 0:00:34]}  b4 {[%clk 0:00:01]} 43. Rxa6+ {[%clk 0:00:30]}  Rxa6 {[%clk 0:00:01]} 44. Rxa6+ {[%clk 0:00:30]}  Kc7 {[%clk 0:00:00]} 45. Ra8 {[%clk 0:00:28]} 1-0


[Site "https://www.chess.com"]